bitfinex-derivatives/quotes_SOLF0:USTF0_20260305
["timestamp","ask_amount","ask_price","bid_price","bid_amount"]
[1772710230439,4.13381256,92.3,92.251,13.43081423]
[1772710230641,3.75593541,92.299,92.204,3.67781423]
[1772710230837,3.75593541,92.289,92.234,3.67781423]
[1772710231247,3.75593541,92.289,92.24,4.13381256]
[1772710231741,4.13381256,92.3,92.25,7.81162679]
[1772710231938,4.13381256,92.3,92.251,3.67781423]
[1772710232645,3.75593541,92.289,92.252,9.753]
[1772710232846,3.75593541,92.289,92.236,3.67781423]
[1772710233444,4.13381256,92.3,92.251,3.67781423]
[1772710233641,7.88974797,92.3,92.251,3.67781423]
[1772710233840,3.75593541,92.299,92.251,3.67781423]
[1772710234038,4.13381256,92.29,92.251,3.67781423]
[1772710234238,3.75593541,92.298,92.252,3.67781423]
[1772710235048,4.13381256,92.29,92.252,3.67781423]
[1772710236251,4.13381256,92.29,92.244,9.754]
[1772710236450,3.75593541,92.298,92.238,3.67781423]
[1772710236451,4.13381256,92.28,92.238,3.67781423]
[1772710238142,13.88381256,92.28,92.238,3.67781423]
[1772710238745,9.749,92.288,92.241,3.67781423]
[1772710240346,4.13381256,92.3,92.241,3.67781423]
[1772710240347,3.75593541,92.298,92.243,9.754]
[1772710240549,4.13381256,92.27,92.182,19.521]
[1772710240753,4.13381256,92.25,92.211,3.67781423]
[1772710241353,4.13381256,92.24,92.197,3.67781423]
[1772710241554,4.13381256,92.23,92.197,3.67781423]
[1772710241954,4.13381256,92.23,92.183,3.67781423]
[1772710242154,4.13381256,92.22,92.183,3.67781423]
[1772710242954,3.75593541,92.226,92.183,3.67781423]
[1772710243154,4.13381256,92.22,92.183,3.67781423]
[1772710244361,4.13381256,92.22,92.183,13.43781423]
[1772710245255,4.13381256,92.21,92.161,3.67781423]
[1772710245953,3.75593541,92.269,92.201,3.67781423]
[1772710246157,4.13381256,92.24,92.186,3.67781423]
[1772710246358,4.13381256,92.23,92.194,9.759]
[1772710246559,4.13381256,92.23,92.186,3.67781423]
[1772710246753,4.13381256,92.23,92.189,9.76]
[1772710248560,4.13381256,92.22,92.189,9.76]
[1772710248762,4.13381256,92.22,92.197,9.759]
[1772710248963,3.75593541,92.23,92.197,9.759]
[1772710249162,7.88974797,92.23,92.197,9.759]
[1772710249760,7.88974797,92.23,92.186,3.67781423]
[1772710249761,4.13381256,92.24,92.205,9.758]
[1772710250458,4.13381256,92.24,92.2,3.74281336]
[1772710250459,4.13381256,92.23,92.196,9.759]
[1772710250665,4.13381256,92.22,92.196,9.759]
[1772710251164,4.13381256,92.22,92.188,9.76]
[1772710251368,4.13381256,92.21,92.188,9.76]
[1772710251559,4.13381256,92.21,92.17,3.74281336]
[1772710252462,4.13381256,92.2,92.18,9.761]
[1772710252667,0.00081256,92.2,92.18,9.761]
[1772710252868,3.89872155,92.226,92.17,3.74281336]
[1772710253066,4.13381256,92.22,92.17,3.74281336]
[1772710254064,4.13381256,92.21,92.17,3.74281336]
[1772710254261,3.89872155,92.241,92.171,3.74281336]
[1772710254562,4.13381256,92.25,92.191,3.74281336]
[1772710254968,4.13381256,92.23,92.195,3.74281336]
[1772710255164,4.13381256,92.23,92.18,3.74281336]
[1772710255370,4.13381256,92.22,92.182,9.76]
[1772710255559,4.13381256,92.22,92.18,3.74281336]
[1772710256067,4.13381256,92.22,92.181,3.74281336]
[1772710256273,4.13381256,92.23,92.181,3.74281336]
[1772710256467,4.13381256,92.24,92.193,3.74281336]
[1772710256672,4.13381256,92.23,92.193,3.74281336]
[1772710256970,4.13381256,92.22,92.176,3.74281336]
[1772710257175,4.13381256,92.21,92.176,3.74281336]
[1772710260076,4.13381256,92.21,92.178,9.761]
[1772710260670,4.13381256,92.21,92.176,3.74281336]
[1772710260869,4.13381256,92.2,92.17,9.762]
[1772710261278,3.89872155,92.262,92.16,3.74281336]
[1772710261478,4.13381256,92.21,92.161,3.74281336]
[1772710262082,4.13381256,92.21,92.182,9.76]
[1772710262676,4.13381256,92.21,92.131,260.43044127]
[1772710262677,8.03253411,92.19,92.138,3.74281336]
[1772710262877,19.508,92.244,92.138,3.74281336]
[1772710262878,4.13381256,92.18,92.138,3.74281336]
[1772710263283,3.89872155,92.204,92.138,3.74281336]
[1772710263481,4.13381256,92.19,92.141,3.74281336]
[1772710263784,4.13381256,92.2,92.141,3.74281336]
[1772710264379,4.13381256,92.2,92.162,9.762]
[1772710264781,4.13381256,92.21,92.163,3.74281336]
[1772710265183,4.13381256,92.2,92.165,9.762]
[1772710265883,4.13381256,92.21,92.172,9.761]
[1772710266079,4.13381256,92.21,92.162,3.74281336]
[1772710267581,3.89872155,92.224,92.171,3.74281336]
[1772710267582,4.13381256,92.22,92.171,3.74281336]
[1772710267783,4.13381256,92.23,92.181,3.74281336]
[1772710267979,3.89872155,92.238,92.181,3.74281336]
[1772710268186,3.89872155,92.238,92.18,4.13381256]
[1772710268187,13.65272155,92.238,92.183,3.74281336]
[1772710268575,4.13381256,92.23,92.183,3.74281336]
[1772710269175,9.756,92.223,92.183,3.74281336]
[1772710269478,4.13381256,92.21,92.168,3.74281336]
[1772710270286,4.13381256,92.2,92.151,3.74281336]
[1772710270485,3.89872155,92.209,92.151,3.74281336]
[1772710270486,4.13381256,92.19,92.151,3.74281336]
[1772710271088,4.13381256,92.2,92.151,3.74281336]
[1772710272480,9.76,92.185,92.151,3.74281336]
[1772710273589,9.759,92.193,92.151,3.74281336]
[1772710273787,7.7,92.207,92.151,3.74281336]
[1772710273986,7.7,92.207,92.161,3.74281336]
[1772710274189,9.758,92.205,92.163,3.74281336]
[1772710274989,9.759,92.199,92.163,3.74281336]
[1772710275498,7.7,92.207,92.163,3.74281336]
[1772710277085,7.7,92.207,92.164,9.762]
[1772710277791,7.7,92.207,92.165,3.74281336]
[1772710277987,7.7,92.207,92.169,9.762]
[1772710278391,7.7,92.207,92.165,3.74281336]
[1772710278392,7.7,92.207,92.175,9.761]
[1772710278988,7.7,92.207,92.165,3.74281336]
[1772710280188,7.7,92.207,92.166,9.762]
[1772710280591,7.7,92.207,92.167,3.66143429]
[1772710280787,7.78923381,92.24,92.181,3.4185164]
[1772710280995,3.64839806,92.239,92.181,3.4185164]
[1772710281192,4.14083575,92.23,92.184,9.76]
[1772710282398,3.64839806,92.256,92.201,3.41305875]
[1772710282695,4.14083575,92.24,92.19,4.14083575]
[1772710282895,4.14083575,92.24,92.19,17.3128945]
[1772710283097,3.64839806,92.249,92.191,3.41305875]
[1772710283298,3.64839806,92.249,92.201,3.41305875]
[1772710283496,3.64839806,92.249,92.202,3.41305875]
[1772710284297,7.56,92.256,92.202,3.41305875]
[1772710284491,3.64839806,92.255,92.202,3.41305875]
[1772710284699,3.64839806,92.255,92.204,3.45389481]
[1772710286696,3.64839806,92.255,92.21,4.14083575]
[1772710286895,13.40139806,92.255,92.21,4.14083575]
[1772710287201,3.64379705,92.254,92.204,3.45389481]
[1772710288191,9.753,92.251,92.204,3.45389481]
[1772710289201,9.753,92.251,92.21,4.14083575]
[1772710289403,3.64379705,92.25,92.21,4.14083575]
[1772710291095,9.753,92.249,92.21,4.14083575]
[1772710291295,9.753,92.249,92.204,3.45389481]
[1772710291497,13.39679705,92.249,92.204,3.45389481]
[1772710292403,3.64379705,92.244,92.19,7.58162282]
[1772710292700,3.64379705,92.239,92.191,3.44078707]
[1772710293100,9.755,92.238,92.191,13.19978707]
[1772710293606,7.56,92.256,92.149,19.528]
[1772710293607,3.64379705,92.254,92.21,4.14083575]
[1772710294405,9.753,92.249,92.21,4.14083575]
[1772710294700,3.64379705,92.249,92.19,4.14083575]
[1772710295601,7.56,92.256,92.211,3.44112774]
[1772710296308,7.56,92.256,92.22,4.14083575]
[1772710296502,7.56,92.256,92.212,3.42793507]
[1772710296899,7.56,92.256,92.162,20.1605282]
[1772710296900,3.64379705,92.249,92.196,3.42793507]
[1772710297402,3.64379705,92.249,92.2,4.14083575]
[1772710298405,9.753,92.248,92.2,4.14083575]
[1772710298800,3.64379705,92.249,92.2,4.14083575]
[1772710299008,3.64379705,92.249,92.197,13.07513318]
[1772710299206,3.64379705,92.249,92.198,3.31613318]
[1772710299408,9.754,92.241,92.2,9.758]
[1772710299908,9.754,92.241,92.2,13.89883575]
[1772710300105,3.64379705,92.24,92.2,13.89883575]
[1772710300709,3.64379705,92.24,92.193,9.759]
[1772710300710,13.39779705,92.238,92.193,9.759]
[1772710302313,3.64379705,92.238,92.193,9.759]
[1772710303307,3.64379705,92.238,92.198,9.759]
[1772710303811,3.64379705,92.238,92.204,9.758]
[1772710304408,4.14083575,92.25,92.211,9.757]
[1772710304612,7.56,92.256,92.211,9.757]
[1772710305112,3.64379705,92.254,92.211,9.757]
[1772710305308,3.64379705,92.249,92.204,9.758]
[1772710305702,3.64379705,92.246,92.204,9.758]
[1772710306507,4.14083575,92.24,92.204,9.758]
[1772710308806,4.14083575,92.24,92.21,9.757]
[1772710309013,9.753,92.253,92.166,19.525]
[1772710309014,9.753,92.253,92.201,3.45645068]
[1772710309914,4.14083575,92.26,92.201,3.45645068]
[1772710309915,9.753,92.251,92.21,9.757]
[1772710310217,3.80923454,92.249,92.201,3.45645068]
[1772710310512,3.80923454,92.249,92.211,9.757]
[1772710311414,3.80923454,92.249,92.165,20.1605282]
[1772710311415,3.80923454,92.268,92.216,3.4160913]
[1772710311612,3.80923454,92.268,92.22,4.14083575]
[1772710312113,3.80923454,92.268,92.216,3.4160913]
[1772710312317,4.14083575,92.24,92.19,4.14083575]
[1772710312517,3.80923454,92.239,92.191,3.42100437]
[1772710313015,3.80923454,92.239,92.209,9.757]
[1772710314312,3.80923454,92.239,92.198,9.759]
[1772710318915,3.80923454,92.239,92.192,3.34891449]
[1772710320615,3.80923454,92.239,92.2,9.758]
[1772710320917,3.80923454,92.239,92.192,3.34891449]
[1772710321216,3.80923454,92.267,92.221,3.29971214]
[1772710321623,3.80923454,92.267,92.237,9.754]
[1772710322315,4.14083575,92.26,92.221,3.29971214]
[1772710322513,3.80923454,92.249,92.2,3.31725204]
[1772710322713,4.14083575,92.24,92.2,3.31725204]
[1772710322917,7.95007029,92.24,92.2,3.31725204]
[1772710323117,3.80923454,92.239,92.181,3.31725204]
[1772710323518,3.80923454,92.239,92.2,9.758]
[1772710324820,3.80923454,92.239,92.207,9.758]
[1772710325026,4.14083575,92.25,92.207,9.758]
[1772710325219,12.93105416,92.249,92.207,9.758]
[1772710325418,3.80923454,92.248,92.207,9.758]
[1772710326219,9.12181962,92.247,92.207,9.758]
[1772710326422,4.14083575,92.24,92.207,9.758]
[1772710327721,9.12181962,92.246,92.207,9.758]
[1772710327922,9.12181962,92.247,92.207,9.758]
[1772710328123,9.12181962,92.246,92.207,9.758]
[1772710328324,9.12181962,92.247,92.207,9.758]
[1772710328627,9.12181962,92.246,92.207,9.758]
[1772710328825,9.12181962,92.247,92.207,9.758]
[1772710329026,9.12181962,92.246,92.207,9.758]
[1772710329226,9.12181962,92.247,92.207,9.758]
[1772710329418,9.12181962,92.246,92.207,9.758]
[1772710329622,12.93105416,92.247,92.207,9.758]
[1772710329922,9.12181962,92.246,92.207,9.758]
[1772710330518,3.80923454,92.247,92.207,9.758]
[1772710332434,9.754,92.246,92.199,9.759]
[1772710332730,9.754,92.246,92.2,3.39646443]
[1772710332923,18.87581962,92.246,92.2,3.39646443]
[1772710333531,3.80923454,92.247,92.209,3.39646443]
[1772710333732,17.17344776,92.254,92.22,4.14083575]
[1772710334028,3.80923454,92.269,92.221,3.39637673]
[1772710334235,9.752,92.257,92.212,9.757]
[1772710334532,3.80923454,92.259,92.211,3.39637673]
[1772710335326,9.12904767,92.263,92.222,3.39637673]
[1772710335529,17.17614954,92.265,92.222,3.39637673]
[1772710335829,9.12904767,92.264,92.222,3.39637673]
[1772710336033,9.12904767,92.263,92.222,3.39637673]
[1772710336231,9.12904767,92.265,92.226,13.16102418]
[1772710336534,3.80923454,92.268,92.226,13.16102418]
[1772710336930,12.93910265,92.271,92.231,3.40502418]
[1772710337134,3.80923454,92.269,92.218,3.40502418]
[1772710337336,4.14083575,92.26,92.223,9.756]
[1772710337636,4.14083575,92.25,92.218,3.40502418]
[1772710337836,3.80923454,92.259,92.218,3.40502418]
[1772710338227,3.80923454,92.259,92.204,3.40632386]
[1772710338439,13.42214714,92.295,92.158,19.526]
[1772710338440,3.80923454,92.239,92.191,3.40632386]
[1772710339134,4.14083575,92.24,92.195,3.40572598]
[1772710339330,10.07932488,92.273,92.158,19.526]
[1772710339331,3.73438303,92.267,92.201,3.40572598]
[1772710339534,9.12478785,92.266,92.221,3.40572598]
[1772710339735,9.12478785,92.265,92.221,3.40572598]
[1772710339934,9.12478785,92.266,92.221,3.40572598]
[1772710340135,9.12478785,92.265,92.221,3.40572598]
[1772710340336,9.12478785,92.266,92.221,3.40572598]
[1772710340537,9.12478785,92.266,92.227,9.756]
[1772710340839,9.12478785,92.265,92.227,9.756]
[1772710341041,9.751,92.273,92.181,19.521]
[1772710341042,4.13529887,92.25,92.201,3.46355735]
[1772710341838,3.73438303,92.259,92.201,3.46355735]
[1772710342443,9.752,92.258,92.207,13.22283191]
[1772710342735,9.752,92.258,92.208,3.46483191]
[1772710342939,3.73438303,92.259,92.213,3.46483191]
[1772710344041,4.13529887,92.25,92.213,3.46483191]
[1772710344441,3.73438303,92.257,92.213,3.46483191]
[1772710345440,9.753,92.256,92.213,3.46483191]
[1772710346040,3.73438303,92.257,92.214,9.757]
[1772710346239,3.73438303,92.257,92.213,3.46483191]
[1772710347446,3.73438303,92.257,92.221,9.756]
[1772710353550,3.73438303,92.257,92.194,3.44003071]
[1772710353551,3.61709484,92.249,92.194,3.44003071]
[1772710354453,9.753,92.248,92.206,13.21515551]
[1772710355754,9.753,92.248,92.207,3.46337298]
[1772710356250,3.61709484,92.249,92.207,3.46337298]
[1772710356655,3.61709484,92.249,92.21,9.757]
[1772710359051,3.61709484,92.248,92.201,9.758]
[1772710359249,10.07932488,92.278,92.195,3.46360013]
[1772710359250,3.61709484,92.239,92.195,3.46360013]
[1772710361450,3.61709484,92.239,92.21,9.757]
[1772710362559,3.61709484,92.239,92.202,9.758]
[1772710363563,3.61709484,92.239,92.209,9.757]
[1772710367353,9.754,92.247,92.21,3.45408025]
[1772710368264,3.61709484,92.274,92.214,3.45437967]
[1772710368457,3.61709484,92.269,92.214,3.45437967]
[1772710368761,4.13529887,92.27,92.214,3.45437967]
[1772710368762,3.61709484,92.267,92.214,3.45437967]
[1772710369064,3.77088094,92.264,92.225,9.756]
[1772710370066,4.13529887,92.26,92.218,3.47505846]
[1772710370260,3.77088094,92.264,92.218,3.47505846]
[1772710370660,3.77088094,92.264,92.228,9.755]
[1772710371660,4.13529887,92.27,92.233,3.49214193]
[1772710373464,13.88629887,92.27,92.233,3.49214193]
[1772710373863,17.65717981,92.27,92.233,3.49214193]
[1772710374462,9.752,92.262,92.233,3.49214193]
[1772710378063,9.751,92.269,92.233,3.49214193]
[1772710378669,13.52188094,92.269,92.233,3.49214193]
[1772710379273,4.13529887,92.28,92.237,3.48528335]
[1772710380074,7.90617981,92.28,92.237,3.48528335]
[1772710380576,7.90617981,92.28,92.242,9.754]
[1772710381074,3.77088094,92.269,92.224,3.49922006]
[1772710381466,4.13529887,92.24,92.206,3.49922006]
[1772710382076,7.90617981,92.26,92.215,3.49993505]
[1772710382574,3.77088094,92.26,92.215,3.49993505]
[1772710383477,3.77088094,92.26,92.227,9.756]
[1772710384774,3.77088094,92.26,92.179,19.522]
[1772710384775,3.77088094,92.249,92.202,3.53175062]
[1772710386374,3.77088094,92.249,92.209,9.757]
[1772710388168,3.77088094,92.246,92.209,9.757]
[1772710388369,4.13529887,92.24,92.209,9.757]
[1772710388877,7.90617981,92.24,92.209,9.757]
[1772710389478,7.90617981,92.24,92.202,13.28975062]
[1772710389679,3.77088094,92.239,92.202,13.28975062]
[1772710393078,3.77088094,92.239,92.211,9.757]
[1772710394182,3.77088094,92.239,92.203,9.758]
[1772710394573,10.07932488,92.274,92.16,19.526]
[1772710394574,4.13529887,92.21,92.174,3.55397577]
[1772710395281,3.77088094,92.219,92.185,9.76]
[1772710396677,3.77088094,92.199,92.146,3.55301441]
[1772710396983,4.13529887,92.18,92.146,3.55301441]
[1772710398079,4.13529887,92.18,92.145,9.764]
[1772710398284,3.77088094,92.179,92.145,9.764]
[1772710398583,4.13529887,92.17,92.133,3.53694972]
[1772710398782,4.13529887,92.17,92.136,9.765]
[1772710398982,4.13529887,92.15,92.108,3.5439323]
[1772710400182,4.13529887,92.14,92.1,9.769]
[1772710400379,4.13529887,92.13,92.095,263.27451417]
[1772710400684,4.14765544,92.13,92.095,263.27451417]
[1772710401180,3.69662881,92.139,92.095,263.27451417]
[1772710403383,4.14765544,92.13,92.095,263.27451417]
[1772710404383,7.84428425,92.13,92.095,263.27451417]
[1772710404679,4.14765544,92.12,92.082,9.771]
[1772710404880,4.14765544,92.11,92.082,9.771]
[1772710405282,4.14765544,92.12,92.083,3.59134063]
[1772710405484,4.14765544,92.13,92.086,3.59134063]
[1772710405885,4.14765544,92.12,92.086,3.59134063]
[1772710406888,3.72504914,92.129,92.089,9.77]
[1772710407285,3.72504914,92.147,92.1,7.76399113]
[1772710407488,8.98348538,92.199,92.045,19.55]
[1772710407489,3.72504914,92.129,92.087,3.61633569]
[1772710407689,4.14765544,92.12,92.071,3.61633569]
[1772710407991,3.72504914,92.119,92.073,9.772]
[1772710409386,4.14765544,92.11,92.073,9.772]
[1772710409582,4.14765544,92.11,92.071,3.61633569]
[1772710409787,3.72504914,92.109,92.061,3.67636911]
[1772710410187,3.72504914,92.109,92.071,3.67636911]
[1772710410895,3.72504914,92.109,92.067,9.773]
[1772710411090,4.14765544,92.1,92.055,3.67636911]
[1772710411992,4.14765544,92.1,92.064,9.773]
[1772710412991,3.72504914,92.109,92.064,9.773]
[1772710413191,3.72504914,92.109,92.069,3.66913144]
[1772710414098,3.72504914,92.109,92.003,1.88999984]
[1772710414099,3.72504914,92.089,92.031,3.70891685]
[1772710414293,4.14765544,92.08,92.031,3.70891685]
[1772710414494,3.72504914,92.089,92.031,3.70891685]
[1772710414691,3.72504914,92.089,92.041,9.775]
[1772710415094,3.72504914,92.089,92.05,9.774]
[1772710415288,4.14765544,92.1,92.051,3.70891685]
[1772710415492,3.72504914,92.102,92.051,3.70891685]
[1772710415896,3.72504914,92.102,92.058,9.773]
[1772710416292,3.72504914,92.102,92.06,4.14765544]
[1772710417092,3.72504914,92.102,92.058,9.773]
[1772710417890,3.72504914,92.102,92.058,13.37096174]
[1772710418989,4.14765544,92.12,92.071,3.59796174]
[1772710419188,3.72504914,92.139,92.09,4.14765544]
[1772710420503,13.49004914,92.136,92.09,4.14765544]
[1772710420704,13.49004914,92.136,92.1,4.14765544]
[1772710420900,9.765,92.136,92.091,3.59513311]
[1772710421105,3.72504914,92.127,92.081,9.771]
[1772710421401,3.72504914,92.127,92.08,4.14765544]
[1772710421804,3.72504914,92.127,92.08,7.71567259]
[1772710422002,3.72504914,92.127,92.081,3.56801715]
[1772710422405,3.72504914,92.127,92.088,9.77]
[1772710423410,3.72504914,92.126,92.081,3.56801715]
[1772710425007,3.72504914,92.126,92.09,4.14765544]
[1772710425705,3.72504914,92.152,92.1,7.71624836]
[1772710425909,3.72504914,92.139,92.063,3.56573931]
[1772710426098,4.14765544,92.12,92.071,3.56573931]
[1772710426299,3.72504914,92.129,92.08,4.14765544]
[1772710426498,3.72504914,92.129,92.09,4.14765544]
[1772710427406,3.72504914,92.129,92.081,3.56573931]
[1772710427803,3.72504914,92.199,92.101,3.51660478]
[1772710428004,3.72504914,92.169,92.12,4.14765544]
[1772710429014,3.72504914,92.169,92.13,4.14765544]
[1772710429312,3.75467387,92.199,92.131,3.51495245]
[1772710429502,3.75467387,92.189,92.131,3.51495245]
[1772710429810,3.75467387,92.189,92.14,4.14765544]
[1772710430413,9.76,92.184,92.14,4.14765544]
[1772710431512,9.76,92.184,92.134,9.765]
[1772710432111,3.75467387,92.189,92.141,13.21350902]
[1772710432307,3.75467387,92.189,92.142,3.44850902]
[1772710433412,9.76,92.187,92.142,3.44850902]
[1772710433810,3.75467387,92.189,92.142,3.44850902]
[1772710435410,9.76,92.188,92.142,3.44850902]
[1772710436013,9.76,92.185,92.142,3.44850902]
[1772710437908,3.75467387,92.189,92.142,3.44850902]
[1772710439812,3.75467387,92.189,92.142,13.21350902]
[1772710440710,3.75467387,92.179,92.127,3.39822911]
[1772710440909,4.14765544,92.17,92.127,3.39822911]
[1772710441107,4.14765544,92.19,92.144,9.764]
[1772710441408,4.14765544,92.19,92.145,3.39822911]
[1772710442014,9.76,92.189,92.145,3.39822911]
[1772710442318,4.14765544,92.18,92.145,3.39822911]
[1772710443315,3.75467387,92.188,92.145,3.39822911]
[1772710443513,3.75467387,92.188,92.144,9.764]
[1772710443514,9.759,92.198,92.151,3.37494102]
[1772710444422,9.759,92.195,92.151,13.13894102]
[1772710444906,3.75467387,92.197,92.151,13.13894102]
[1772710445115,4.14765544,92.21,92.155,3.3756299]
[1772710445416,4.14765544,92.21,92.161,3.3756299]
[1772710446214,4.14765544,92.2,92.147,3.37601913]
[1772710446518,7.90232931,92.2,92.147,3.37601913]
[1772710447216,17.66032931,92.2,92.153,13.13901913]
[1772710447816,17.66032931,92.2,92.154,3.37668212]
[1772710448120,7.90232931,92.2,92.157,9.763]
[1772710448421,7.90232931,92.2,92.157,13.13968212]
[1772710448716,9.757,92.217,92.164,3.37668212]
[1772710448917,3.75467387,92.218,92.171,3.37668212]
[1772710450222,9.757,92.214,92.173,9.761]
[1772710451122,3.75467387,92.218,92.173,9.761]
[1772710451723,3.75467387,92.218,92.173,13.13921023]
[1772710451923,4.14765544,92.22,92.181,3.36909332]
[1772710452526,3.75467387,92.219,92.18,9.761]
[1772710452721,3.75467387,92.219,92.173,9.761]
[1772710452925,4.14765544,92.21,92.173,9.761]
[1772710453425,4.14765544,92.22,92.18,3.36909332]
[1772710453626,7.90232931,92.22,92.18,3.36909332]
[1772710453827,3.75467387,92.219,92.18,3.36909332]
[1772710454222,4.14765544,92.21,92.161,3.35618486]
[1772710454423,4.14765544,92.21,92.172,9.761]
[1772710454628,3.75467387,92.209,92.172,9.761]
[1772710455031,4.14765544,92.2,92.163,9.762]
[1772710455330,7.90232931,92.2,92.163,9.762]
[1772710455530,4.14765544,92.19,92.163,9.762]
[1772710455726,7.90232931,92.19,92.145,3.35618486]
[1772710455932,4.14765544,92.18,92.131,3.3556681]
[1772710456133,4.14765544,92.17,92.131,3.3556681]
[1772710456334,7.90232931,92.17,92.111,3.3556681]
[1772710456925,4.14765544,92.15,92.111,3.3556681]
[1772710457132,4.14765544,92.14,92.103,264.10149344]
[1772710458430,4.14765544,92.14,92.109,9.768]
[1772710459035,4.14765544,92.14,92.103,264.10149344]
[1772710460032,3.75467387,92.155,92.103,264.10149344]
[1772710460033,4.14765544,92.15,92.104,3.50464124]
[1772710461042,13.91165544,92.15,92.104,3.50464124]
[1772710461234,3.75467387,92.155,92.104,3.50464124]
[1772710461437,4.14765544,92.16,92.111,3.50464124]
[1772710461636,4.14765544,92.16,92.114,3.50464124]
[1772710461942,8.06276985,92.17,92.114,3.50464124]
[1772710462237,3.91511441,92.186,92.14,4.14765544]
[1772710462438,3.91511441,92.186,92.14,4.1419389]
[1772710462837,9.761,92.179,92.133,3.50783142]
[1772710463245,3.91511441,92.178,92.134,9.765]
[1772710463439,3.91511441,92.178,92.134,13.27283142]
[1772710464242,3.91511441,92.169,92.12,4.1419389]
[1772710464442,3.91511441,92.169,92.117,3.50801873]
[1772710465038,3.91511441,92.167,92.123,9.767]
[1772710465240,3.91511441,92.167,92.13,4.1419389]
[1772710465440,13.42214714,92.238,92.13,4.1419389]
[1772710465441,3.91511441,92.183,92.131,3.50801873]
[1772710466441,3.91511441,92.183,92.132,9.766]
[1772710466945,4.1419389,92.18,92.132,9.766]
[1772710467144,3.91511441,92.179,92.132,9.766]
[1772710467345,4.1419389,92.17,92.132,9.766]
[1772710467546,3.65166003,92.155,92.104,3.58397485]
[1772710467743,3.65166003,92.155,92.111,3.63073418]
[1772710467937,4.1419389,92.18,92.121,3.63073418]
[1772710468243,3.65166003,92.176,92.126,9.766]
[1772710470041,9.76,92.185,92.133,3.57797365]
[1772710470541,4.1419389,92.19,92.137,9.765]
[1772710470542,3.65166003,92.189,92.137,9.765]
[1772710472549,3.65166003,92.185,92.137,9.765]
[1772710472844,4.1419389,92.18,92.137,9.765]
[1772710474254,3.65166003,92.176,92.133,3.57797365]
[1772710474450,4.1419389,92.18,92.133,3.57797365]
[1772710474652,4.1419389,92.19,92.149,9.764]
[1772710474853,3.65166003,92.207,92.16,4.1419389]
[1772710475653,3.65166003,92.207,92.151,3.6108541]
[1772710475849,9.759,92.198,92.156,9.763]
[1772710476055,4.1419389,92.19,92.151,3.6108541]
[1772710477144,3.65166003,92.199,92.151,3.6108541]
[1772710477346,9.759,92.191,92.151,3.6108541]
[1772710478551,13.41066003,92.199,92.154,9.763]
[1772710478758,3.65166003,92.214,92.161,3.42854828]
[1772710479354,9.758,92.208,92.161,13.19154828]
[1772710480450,4.1419389,92.21,92.161,13.19154828]
[1772710481048,3.65166003,92.214,92.17,7.57455562]
[1772710481350,3.65166003,92.214,92.1,26.97258441]
[1772710481351,9.756,92.225,92.18,4.1419389]
[1772710481549,7.79359893,92.23,92.181,3.43261672]
[1772710482754,3.65166003,92.23,92.181,3.43261672]
[1772710483455,3.65166003,92.23,92.188,9.76]
[1772710484253,4.1419389,92.24,92.194,9.759]
[1772710484458,3.65166003,92.24,92.194,9.759]
[1772710485260,3.65166003,92.254,92.21,4.1419389]
[1772710486156,3.65166003,92.249,92.201,3.40182861]
[1772710486952,3.65166003,92.249,92.202,9.758]
[1772710488154,3.65166003,92.249,92.21,4.1419389]
[1772710489157,19.497,92.296,92.158,19.526]
[1772710489158,3.72286007,92.278,92.23,4.1419389]
[1772710489466,3.72286007,92.278,92.24,4.1419389]
[1772710490158,3.72286007,92.299,92.25,4.1419389]
[1772710491365,9.749,92.293,92.25,4.1419389]
[1772710491555,3.72286007,92.299,92.25,4.1419389]
[1772710491758,1.88643448,92.318,92.241,3.49707757]
[1772710491759,3.72286007,92.289,92.241,3.49707757]
[1772710492563,13.47286007,92.278,92.23,4.1419389]
[1772710492764,3.72286007,92.277,92.23,4.1419389]
[1772710493956,9.751,92.274,92.231,9.755]
[1772710494357,3.72286007,92.277,92.232,3.0270772]
[1772710494568,3.72286007,92.277,92.234,3.0270772]
[1772710494763,9.75,92.283,92.234,3.0270772]
[1772710495067,4.1419389,92.3,92.251,3.0270772]
[1772710495465,9.749,92.291,92.251,3.0270772]
[1772710495766,3.72286007,92.289,92.235,3.0270772]
[1772710496166,9.749,92.286,92.236,9.755]
[1772710496564,3.72286007,92.289,92.236,9.755]
[1772710496765,1.88643448,92.318,92.25,4.1419389]
[1772710496766,4.1419389,92.3,92.25,4.1419389]